bitfinex/quotes_SOLUSD_20241220
["timestamp","ask_amount","ask_price","bid_price","bid_amount"]
[1734682604446,0.58433099,187.51,187.43,39.86523792]
[1734682604743,12.0,187.5,187.43,39.86523792]
[1734682604945,0.58433099,187.49,187.41,39.86523792]
[1734682605128,39.86523792,187.46,187.37,39.86523792]
[1734682605328,0.58433099,187.45,187.37,39.86523792]
[1734682605524,39.86523792,187.44,187.35,39.86523792]
[1734682605752,0.58433099,187.43,187.35,39.86523792]
[1734682606142,39.86523792,187.48,187.39,39.86523792]
[1734682606339,39.86523792,187.42,187.34,6.8438702]
[1734682606535,40.44956891,187.47,187.34,0.6843702]
[1734682606536,39.86523792,187.37,187.34,0.6843702]
[1734682606727,39.86523792,187.35,187.34,0.6843702]
[1734682606926,39.86523792,187.35,187.34,7.02e-05]
[1734682607250,39.86523792,187.35,187.24,39.86523792]
[1734682607449,39.86523792,187.31,187.22,39.86523792]
[1734682607960,39.86523792,187.33,187.24,39.86523792]
[1734682608135,0.58433099,187.32,187.24,39.86523792]
[1734682608457,39.86523792,187.37,187.29,39.86523792]
[1734682608759,39.86523792,187.39,187.31,39.86523792]
[1734682608953,39.86523792,187.41,187.33,39.86523792]
[1734682609155,39.86523792,187.43,187.35,39.86523792]
[1734682609336,39.86523792,187.47,187.37,39.86523792]
[1734682609534,39.86523792,187.45,187.37,39.86523792]
[1734682609743,39.86523792,187.49,187.41,39.86523792]
[1734682610136,39.86523792,187.51,187.41,39.86523792]
[1734682610336,39.86523792,187.49,187.41,39.86523792]
[1734682610741,39.86523792,187.51,187.43,39.86523792]
[1734682611052,40.44956891,187.55,187.43,0.79999998]
[1734682611248,39.86523792,187.44,187.27,0.79985414]
[1734682611551,39.86523792,187.36,187.29,8.33015356]
[1734682611729,39.86523792,187.34,187.29,8.33015356]
[1734682612081,39.86523792,187.34,187.25,46.51453792]
[1734682612239,40.44956891,187.36,187.27,39.86523792]
[1734682612554,39.86523792,187.36,187.27,40.66596055]
[1734682612755,39.86523792,187.36,187.29,39.86523792]
[1734682613052,39.86523792,187.4,187.31,39.86523792]
[1734682613638,0.58433099,187.39,187.31,39.86523792]
[1734682613836,40.44956891,187.4,187.31,39.86523792]
[1734682614067,39.86523792,187.38,187.29,39.86523792]
[1734682614240,39.86523792,187.36,187.27,39.86523792]
[1734682614444,0.58433099,187.35,187.27,39.86523792]
[1734682614975,39.86523792,187.36,187.27,39.86523792]
[1734682615275,0.58433099,187.38,187.09,16.86795356]
[1734682615276,79.73047584,187.29,187.09,16.86795356]
[1734682615436,39.86523792,187.23,187.14,40.48544992]
[1734682615754,39.86523792,187.19,187.14,0.620212]
[1734682615967,39.86523792,187.21,187.14,0.620212]
[1734682616171,1.00179712,187.28,187.14,40.48544992]
[1734682616172,39.86523792,187.23,187.14,40.48544992]
[1734682616546,1.00153421,187.22,187.14,40.48544992]
[1734682616752,39.86523792,187.25,187.16,39.86523792]
[1734682616954,1.00153771,187.28,187.2,39.86523792]
[1734682617254,39.86523792,187.27,187.18,39.86523792]
[1734682617449,1.00144371,187.26,187.18,39.86523792]
[1734682617972,39.86523792,187.29,187.2,39.86523792]
[1734682618262,1.00132181,187.32,187.26,39.86523792]
[1734682618444,39.86523792,187.31,187.24,39.86523792]
[1734682618640,1.00118478,187.3,187.22,39.86523792]
[1734682619349,1.00118478,187.3,187.14,0.620212]
[1734682619350,39.86523792,187.27,187.18,39.86523792]
[1734682619652,39.86523792,187.25,187.18,39.86523792]
[1734682619853,1.00154503,187.24,187.18,39.86523792]
[1734682620268,1.00154503,187.24,187.14,1.23842045]
[1734682620269,39.86523792,187.19,187.14,0.620212]
[1734682620485,1.00195634,187.18,187.14,0.620212]
[1734682621042,39.86523792,187.15,187.14,1.2e-05]
[1734682621467,51.88763792,187.15,187.14,1.2e-05]
[1734682622166,39.86523792,187.15,187.14,1.2e-05]
[1734682622355,40.86728831,187.15,187.14,1.2e-05]
[1734682622551,39.86523792,187.15,187.14,1.2e-05]
[1734682622752,40.86739158,187.19,187.14,1.2e-05]
[1734682622958,39.86523792,187.15,187.14,1.2e-05]
[1734682623473,40.86757269,187.15,187.14,1.2e-05]
[1734682623976,20.0,187.11,186.93,39.86523792]
[1734682624160,20.0,187.11,186.91,39.86523792]
[1734682624161,39.86523792,186.99,186.91,39.86523792]
[1734682624358,40.86808281,186.98,186.88,0.62061862]
[1734682624571,40.86808281,186.98,186.97,5.46e-05]
[1734682624749,40.86808281,186.98,186.81,39.86523792]
[1734682624950,39.86523792,186.85,186.78,8.97690816]
[1734682625150,39.86523792,186.83,186.78,8.97690816]
[1734682625354,1.00347879,186.84,186.78,8.97690816]
[1734682625355,39.86523792,186.79,186.78,8.97690816]
[1734682625661,39.86523792,186.81,186.78,0.6467546]
[1734682625857,39.86523792,186.79,186.78,0.6467546]
[1734682626248,1.00405583,186.8,186.78,0.6467546]
[1734682626654,1.00391568,186.86,186.79,39.86523792]
[1734682627088,39.86523792,186.87,186.79,39.86523792]
[1734682627265,1.00356206,186.9,186.78,0.6467546]
[1734682627456,39.86523792,186.86,186.78,40.51199252]
[1734682627659,39.86523792,186.82,186.78,0.6467546]
[1734682627862,39.86523792,186.8,186.78,0.6467546]
[1734682628061,1.0039908,186.79,186.78,0.6467546]
[1734682628773,39.86523792,186.82,186.73,39.86523792]
[1734682628947,39.86523792,186.8,186.73,39.86523792]
[1734682629151,39.86523792,186.82,186.73,39.86523792]
[1734682629351,1.00390898,186.81,186.73,39.86523792]
[1734682629555,39.86523792,186.84,186.75,39.86523792]
[1734682629986,39.86523792,186.88,186.79,39.86523792]
[1734682630171,39.86523792,186.84,186.77,39.86523792]
[1734682630380,39.86523792,186.88,186.79,39.86523792]
[1734682630672,1.00354619,186.9,186.85,39.86523792]
[1734682630856,1.00333971,186.95,186.87,39.86523792]
[1734682631067,39.86523792,186.92,186.83,40.48666146]
[1734682631249,39.86523792,186.86,186.77,39.86523792]
[1734682631450,1.00354715,186.85,186.75,6.2134]
[1734682631650,39.86523792,186.84,186.77,39.86523792]
[1734682631863,1.00371148,186.83,186.75,39.86523792]
[1734682632074,39.86523792,186.86,186.78,23.776884]
[1734682632252,39.86523792,186.84,186.75,39.86523792]
[1734682632458,39.86523792,186.84,186.76,23.776884]
[1734682632660,1.0036803,186.83,186.75,39.86523792]
[1734682633074,39.86523792,186.84,186.75,39.86523792]
[1734682633291,39.86523792,186.82,186.74,23.776884]
[1734682633455,1.00384132,186.81,186.74,23.776884]
[1734682633655,1.00384132,186.81,186.73,39.86523792]
[1734682633876,39.86523792,186.8,186.72,23.776884]
[1734682634355,39.86523792,186.88,186.79,39.86523792]
[1734682634562,1.00348941,186.89,186.81,39.86523792]
[1734682634767,39.86523792,186.88,186.81,39.86523792]
[1734682634998,39.86523792,186.84,186.75,39.86523792]
[1734682635165,39.86523792,186.82,186.73,39.86523792]
[1734682635361,39.86523792,186.8,186.71,39.86523792]
[1734682635698,39.86523792,186.78,186.71,39.86523792]
[1734682636004,39.86523792,186.84,186.67,39.86523792]
[1734682636005,39.86523792,186.76,186.67,39.86523792]
[1734682636497,39.86523792,186.78,186.71,39.86523792]
[1734682636673,1.00396989,186.77,186.71,39.86523792]
[1734682636869,1.00396989,186.77,186.67,0.6231088]
[1734682636870,39.86523792,186.76,186.67,39.86523792]
[1734682637084,39.86523792,186.74,186.65,39.86523792]
[1734682637285,39.86523792,186.76,186.67,39.86523792]
[1734682637587,39.86523792,186.73,186.65,39.86523792]
[1734682637765,39.86523792,186.75,186.67,39.86523792]
[1734682637969,1.00417345,186.74,186.67,39.86523792]
[1734682638163,1.00420722,186.74,186.69,39.86523792]
[1734682638365,1.00420722,186.74,186.67,39.86523792]
[1734682638569,1.00420722,186.74,186.65,39.86523792]
[1734682638785,39.86523792,186.73,186.65,39.86523792]
[1734682638994,1.00440954,186.72,186.65,39.86523792]
[1734682639304,1.00440954,186.72,186.61,6.3968]
[1734682639305,39.86523792,186.69,186.61,39.86523792]
[1734682639487,1.00440954,186.72,186.59,0.6467546]
[1734682639488,39.86523792,186.67,186.59,0.6467546]
[1734682639790,39.86523792,186.69,186.6,39.86523792]
[1734682640093,39.86523792,186.71,186.62,39.86523792]
[1734682640266,39.86523792,186.71,186.64,39.86523792]
[1734682640590,39.86523792,186.75,186.67,23.776884]
[1734682640768,1.00417518,186.74,186.66,39.86523792]
[1734682641171,39.86523792,186.8,186.72,39.86523792]
[1734682641371,1.00394158,186.83,186.74,39.86523792]
[1734682641610,1.00380211,186.83,186.78,39.86523792]
[1734682641897,1.00371546,186.9,186.82,39.86523792]
[1734682642192,1.00333346,186.93,186.89,39.86523792]
[1734682642379,1.00316755,186.97,186.91,39.86523792]
[1734682642573,39.86523792,186.96,186.87,39.86523792]
[1734682642875,39.86523792,186.96,186.76,40.1584]
[1734682642876,39.86523792,186.92,186.83,39.86523792]
[1734682643071,1.00325247,186.91,186.87,39.86523792]
[1734682643273,1.00328184,186.93,186.87,39.86523792]
[1734682643688,1.00316106,186.93,186.87,39.86523792]
[1734682643890,39.86523792,186.96,186.87,39.86523792]
[1734682644081,1.00311196,186.95,186.87,39.86523792]
[1734682644277,1.00311196,186.95,186.89,39.86523792]
[1734682644480,1.00311196,186.95,186.87,39.86523792]
[1734682644678,39.86523792,186.94,186.87,39.86523792]
[1734682644995,39.86523792,186.92,186.85,39.86523792]
[1734682645288,1.00332171,186.96,186.89,39.86523792]
[1734682645493,39.86523792,186.97,186.89,39.86523792]
[1734682645996,39.86523792,187.01,186.93,39.86523792]
[1734682646184,1.0027801,187.04,186.97,39.86523792]
[1734682646377,1.00254215,187.05,186.97,39.86523792]
[1734682646587,40.86778007,187.05,186.97,39.86523792]
[1734682646992,40.86778007,187.05,186.95,39.86523792]
[1734682647192,39.86523792,186.99,186.91,39.86523792]
[1734682647372,1.00307884,186.98,186.91,39.86523792]
[1734682647579,39.86523792,187.01,186.93,39.86523792]
[1734682647780,1.00279647,187.0,186.93,39.86523792]
[1734682647979,39.86523792,186.99,186.91,39.86523792]
[1734682648181,1.00309844,186.98,186.91,39.86523792]
[1734682648899,40.86818131,187.03,186.93,39.86523792]
[1734682649268,1.00294339,187.03,186.97,39.86523792]
[1734682649495,40.86779271,187.07,186.99,39.86523792]
[1734682649672,39.86523792,187.05,186.95,39.86523792]
[1734682649877,1.00274771,187.04,186.95,39.86523792]
[1734682650198,39.86523792,187.05,186.98,23.776884]
[1734682650374,39.86523792,187.07,186.99,39.86523792]
[1734682650569,39.86523792,187.05,186.97,39.86523792]
[1734682650801,1.002792,187.04,186.95,39.86523792]
[1734682651093,39.86523792,186.99,186.9,39.86523792]
[1734682651279,39.86523792,186.97,186.86,6.0164]
[1734682651486,39.86523792,186.95,186.85,39.86523792]
[1734682651684,1.00328343,186.94,186.87,39.86523792]
[1734682651999,1.00311086,186.94,186.87,39.86523792]
[1734682653700,1.00310627,186.94,186.87,39.86523792]
[1734682654080,1.00310627,186.94,186.54,27.453108]
[1734682654081,1.9219,186.84,186.54,27.453108]
[1734682654383,39.86523792,186.67,186.58,39.86523792]
[1734682654680,39.86523792,186.63,186.54,6.035]
[1734682654882,1.00468692,186.66,186.45,13.4077]
[1734682654883,39.86523792,186.61,186.45,3.2336558]
[1734682655077,1.00504791,186.6,186.46,39.86523792]
[1734682655280,39.86523792,186.63,186.52,39.86523792]
[1734682655610,1.00490093,186.74,186.62,39.86523792]
[1734682655899,1.00430091,186.79,186.73,39.86523792]
[1734682656085,1.00383687,186.83,186.6,6.4468]
[1734682656403,39.86523792,186.8,186.71,39.86523792]
[1734682656591,1.00397745,186.79,186.71,39.86523792]
[1734682656995,39.86523792,186.78,186.69,39.86523792]
[1734682657194,1.00418195,186.77,186.69,39.86523792]
[1734682657409,3.22670189,186.83,186.62,23.776884]
[1734682657410,39.86523792,186.82,186.73,39.86523792]
[1734682657695,1.00382918,186.81,186.73,39.86523792]
[1734682658090,12.043,186.84,186.75,39.86523792]
[1734682658091,39.86523792,186.84,186.75,39.86523792]
[1734682658294,1.00373388,186.83,186.75,39.86523792]
[1734682658494,39.86523792,186.86,186.78,23.776884]
[1734682658807,39.86523792,186.84,186.75,39.86523792]
[1734682658981,39.86523792,186.86,186.78,23.776884]
[1734682659183,39.86523792,186.84,186.75,39.86523792]
[1734682659387,39.86523792,186.86,186.77,39.86523792]
[1734682659601,39.86523792,186.86,186.79,39.86523792]
[1734682659782,39.86523792,186.88,186.81,39.86523792]
[1734682659998,39.86523792,186.9,186.82,23.776884]
[1734682660205,1.0034027,186.89,186.82,23.776884]
[1734682661601,39.86523792,186.86,186.77,39.86523792]
[1734682661806,39.86523792,186.84,186.75,39.86523792]
[1734682662014,39.86523792,186.86,186.79,39.86523792]
[1734682662205,40.86882288,186.9,186.81,39.86523792]
[1734682662402,39.86523792,186.92,186.83,39.86523792]
[1734682662591,1.00318051,186.91,186.85,39.86523792]
[1734682662789,39.86523792,186.9,186.83,39.86523792]
[1734682663089,39.86523792,186.92,186.84,23.776884]
[1734682663499,39.86523792,186.9,186.81,39.86523792]
[1734682663713,39.86523792,186.92,186.85,39.86523792]
[1734682663891,39.86523792,186.94,186.85,39.86523792]
[1734682664091,39.86523792,186.96,186.87,39.86523792]
[1734682664406,39.86523792,186.96,186.89,39.86523792]
[1734682665003,39.86523792,186.96,186.9,23.776884]
[1734682665209,39.86523792,186.98,186.9,23.776884]
[1734682665508,39.86523792,186.94,186.87,39.86523792]
[1734682665714,39.86523792,186.92,186.83,39.86523792]
[1734682666009,1.00300049,186.93,186.79,39.86523792]
[1734682666010,39.86523792,186.86,186.79,39.86523792]
[1734682666205,39.86523792,186.84,186.77,39.86523792]
[1734682666512,39.86523792,186.8,186.73,39.86523792]
[1734682666710,39.86523792,186.84,186.75,39.86523792]
[1734682667031,39.86523792,186.84,186.69,13.3911]
[1734682667032,39.86523792,186.86,186.79,39.86523792]
[1734682667191,39.86523792,186.9,186.81,39.86523792]
[1734682667391,39.86523792,186.9,186.83,39.86523792]
[1734682667592,39.86523792,186.9,186.84,23.776884]
[1734682667814,39.86523792,186.88,186.79,39.86523792]
[1734682667992,39.86523792,186.86,186.8,23.776884]
[1734682668297,39.86523792,186.84,186.75,39.86523792]
[1734682668696,39.86523792,186.82,186.75,39.86523792]
[1734682668903,39.86523792,186.78,186.74,10.0]
[1734682669111,39.86523792,186.76,186.74,10.0]
[1734682669511,39.86523792,186.8,186.74,10.0]
[1734682670111,39.86523792,186.76,186.74,10.0]
[1734682670318,1.00402229,186.75,186.74,10.0]
[1734682671697,39.86523792,186.78,186.74,10.0]
[1734682671996,1.00395031,186.77,186.74,10.0]
[1734682672416,39.86523792,186.76,186.74,10.0]
[1734682672619,20.0,186.72,186.6,39.86523792]
[1734682672795,39.86523792,186.67,186.59,0.6467546]
[1734682673193,39.86523792,186.69,186.6,39.86523792]
[1734682673604,39.86523792,186.69,186.62,39.86523792]
[1734682673790,39.86523792,186.71,186.62,39.86523792]
[1734682674010,39.86523792,186.71,186.64,39.86523792]
[1734682674402,39.86523792,186.73,186.64,39.86523792]
[1734682674798,39.86523792,186.73,186.65,23.776884]
[1734682674996,39.86523792,186.75,186.66,39.86523792]
[1734682675315,39.86523792,186.79,186.71,23.776884]
[1734682675822,39.86523792,186.79,186.73,23.776884]
[1734682676516,39.86523792,186.79,186.66,39.86523792]
[1734682676517,39.86523792,186.75,186.66,39.86523792]
[1734682676812,39.86523792,186.75,186.61,1.9894]
[1734682676813,39.86523792,186.69,186.61,1.9894]
[1734682677019,39.86523792,186.69,186.6,39.86523792]
[1734682677720,39.86523792,186.67,186.59,0.6467546]
[1734682678298,39.86523792,186.67,186.6,39.86523792]
[1734682678504,39.86523792,186.69,186.6,39.86523792]
[1734682678708,1.00446392,186.72,186.62,39.86523792]
[1734682678709,39.86523792,186.71,186.62,39.86523792]
[1734682679020,39.86523792,186.69,186.6,39.86523792]
[1734682679332,39.86523792,186.67,186.59,0.6467546]
[1734682680299,39.86523792,186.67,186.6,23.776884]
[1734682680505,39.86523792,186.71,186.63,23.776884]
[1734682680728,39.86523792,186.69,186.63,23.776884]
[1734682681024,39.86523792,186.75,186.6,23.776884]
[1734682681025,39.86523792,186.67,186.6,23.776884]
[1734682681402,39.86523792,186.65,186.59,0.6467546]
[1734682681736,39.86523792,186.61,186.59,0.6467546]
[1734682681936,1.00501135,186.6,186.59,0.6467546]
[1734682682318,1.00501135,186.6,186.41,0.06467546]
[1734682682319,20.0,186.57,186.41,0.06467546]
[1734682682527,39.86523792,186.51,186.42,39.86523792]
[1734682682923,13.06572903,186.56,186.41,0.06467546]
[1734682682924,1.00532903,186.56,186.5,39.86523792]
[1734682683109,39.86523792,186.63,186.55,39.86523792]
[1734682683436,39.86523792,186.66,186.58,39.86523792]
[1734682683636,1.00462526,186.65,186.58,39.86523792]
[1734682683864,39.86523792,186.64,186.56,39.86523792]
[1734682684156,39.86523792,186.68,186.6,39.86523792]
[1734682684314,39.86523792,186.72,186.65,39.86523792]
[1734682684637,40.86975332,186.74,186.65,39.86523792]
[1734682685038,40.86975332,186.74,186.66,23.776884]
[1734682685344,39.86523792,186.68,186.61,39.86523792]
[1734682685529,1.00461611,186.67,186.6,23.776884]
[1734682685728,1.00461611,186.67,186.41,0.06467546]
[1734682685729,39.86523792,186.66,186.58,23.776884]
[1734682685932,39.86523792,186.68,186.61,39.86523792]
[1734682686164,40.86987258,186.72,186.64,23.776884]
[1734682686367,40.86987258,186.72,186.65,39.86523792]
[1734682686656,1.00414342,186.71,186.63,39.86523792]
[1734682686878,40.86963716,186.74,186.65,39.86523792]
[1734682687187,39.86523792,186.8,186.71,39.86523792]
[1734682687529,39.86523792,186.82,186.75,39.86523792]
[1734682687722,39.86523792,186.84,186.76,23.776884]
[1734682688045,39.86523792,186.86,186.78,23.776884]
[1734682688251,39.86523792,186.86,186.77,39.86523792]
[1734682688252,39.86523792,186.82,186.75,39.86523792]
[1734682688449,39.86523792,186.84,186.75,39.86523792]
[1734682688641,39.86523792,186.8,186.66,23.776884]
[1734682688823,39.86523792,186.8,186.71,39.86523792]
[1734682689029,1.00381695,186.79,186.71,39.86523792]
[1734682689224,39.86523792,186.8,186.73,39.86523792]
[1734682689431,39.86523792,186.78,186.71,39.86523792]
[1734682689748,39.86523792,186.72,186.64,39.86523792]
[1734682690050,1.00417073,186.71,186.64,39.86523792]
[1734682690252,39.86523792,186.72,186.64,39.86523792]
[1734682690634,1.0041985,186.71,186.64,39.86523792]
[1734682690835,39.86523792,186.7,186.62,39.86523792]
[1734682691043,39.86523792,186.72,186.64,39.86523792]
[1734682691359,40.86944865,186.76,186.66,39.86523792]
[1734682691739,39.86523792,186.74,186.66,39.86523792]
[1734682691945,39.86523792,186.72,186.64,39.86523792]
[1734682692341,39.86523792,186.74,186.66,39.86523792]
[1734682692765,39.86523792,186.72,186.64,39.86523792]
[1734682692967,1.0043345,186.71,186.62,39.86523792]
[1734682693153,39.86523792,186.68,186.6,39.86523792]
[1734682693350,39.86523792,186.64,186.5,6.0717]
[1734682693655,39.86523792,186.58,186.5,39.86523792]
[1734682693855,1.00500491,186.57,186.5,39.86523792]
[1734682694060,39.86523792,186.58,186.5,39.86523792]
[1734682694652,39.86523792,186.62,186.54,39.86523792]
[1734682694865,39.86523792,186.64,186.56,39.86523792]
[1734682695060,39.86523792,186.64,186.54,39.86523792]
[1734682695061,1.00470414,186.63,186.54,39.86523792]
[1734682695247,39.86523792,186.64,186.56,39.86523792]
[1734682695562,51.91843792,186.68,186.58,39.86523792]
[1734682695746,39.86523792,186.66,186.58,39.86523792]
[1734682695949,39.86523792,186.68,186.6,39.86523792]
[1734682696153,1.00456677,186.67,186.6,39.86523792]
[1734682696365,39.86523792,186.68,186.6,39.86523792]
[1734682696663,39.86523792,186.66,186.58,39.86523792]
[1734682696864,39.86523792,186.64,186.56,39.86523792]
[1734682697164,12.0533,186.67,186.48,39.86523792]
[1734682697165,39.86523792,186.62,186.54,39.86523792]
[1734682699268,39.86523792,186.6,186.52,39.86523792]
[1734682699943,40.87020147,186.62,186.52,39.86523792]
[1734682700144,10.7165,186.63,186.54,39.86523792]
[1734682700467,39.86523792,186.64,186.56,39.86523792]
[1734682700883,39.86523792,186.68,186.6,39.86523792]
[1734682701246,39.86523792,186.68,186.58,39.86523792]
[1734682701247,39.86523792,186.66,186.58,39.86523792]
[1734682701452,1.00473018,186.65,186.56,39.86523792]
[1734682701651,39.86523792,186.64,186.56,39.86523792]
[1734682701854,39.86523792,186.62,186.54,39.86523792]
[1734682702052,39.86523792,186.6,186.52,39.86523792]
[1734682702784,39.86523792,186.64,186.56,39.86523792]
[1734682702959,39.86523792,186.66,186.58,39.86523792]
[1734682703148,50.57913792,186.68,186.6,39.86523792]
[1734682703347,51.58119702,186.72,186.64,39.86523792]
[1734682703571,10.7113,186.72,186.66,39.86523792]
[1734682703870,50.57473792,186.76,186.68,39.86523792]
[1734682704070,39.86523792,186.74,186.66,39.86523792]
[1734682704272,50.57473792,186.76,186.68,39.86523792]
[1734682704452,1.00408315,186.75,186.68,39.86523792]
[1734682704770,1.00417259,186.75,186.68,39.86523792]
[1734682704970,39.86523792,186.74,186.66,39.86523792]
[1734682705274,50.57473792,186.76,186.68,39.86523792]
[1734682706271,39.86523792,186.76,186.68,39.86523792]
[1734682706475,39.86523792,186.76,186.61,13.3967]
[1734682706476,1.00399064,186.8,186.74,39.86523792]
[1734682706651,39.86523792,186.84,186.76,39.86523792]
[1734682707272,39.86523792,186.79,186.71,39.86523792]
[1734682707574,39.86523792,186.77,186.69,39.86523792]
[1734682707968,1.00411546,186.76,186.69,39.86523792]
[1734682708165,39.86523792,186.77,186.69,39.86523792]
[1734682708361,1.00399617,186.76,186.69,39.86523792]
[1734682708565,39.86523792,186.77,186.69,39.86523792]
[1734682708779,40.86931676,186.79,186.71,39.86523792]
[1734682709073,39.86523792,186.81,186.73,39.86523792]
[1734682709249,1.00378769,186.8,186.73,39.86523792]
[1734682709448,39.86523792,186.79,186.71,39.86523792]
[1734682709705,1.00378769,186.8,186.73,39.86523792]
[1734682709876,1.00383581,186.8,186.73,39.86523792]
[1734682710052,39.86523792,186.79,186.71,39.86523792]
[1734682710370,12.0436,186.82,186.71,39.86523792]
[1734682710371,39.86523792,186.81,186.71,39.86523792]
[1734682710569,39.86523792,186.79,186.71,39.86523792]
[1734682710771,39.86523792,186.77,186.69,39.86523792]
[1734682710990,39.86523792,186.7,186.63,39.86523792]
[1734682711178,39.86523792,186.72,186.65,39.86523792]
[1734682711378,1.00415565,186.71,186.65,39.86523792]
[1734682711577,39.86523792,186.72,186.63,39.86523792]
[1734682712053,39.86523792,186.72,186.65,39.86523792]
[1734682712386,39.86523792,186.74,186.65,39.86523792]
[1734682712757,39.86523792,186.76,186.67,39.86523792]
[1734682713098,39.86523792,186.76,186.69,39.86523792]
[1734682713604,39.86523792,186.78,186.69,39.86523792]
[1734682713814,1.00396893,186.77,186.69,39.86523792]
[1734682713987,40.86920685,186.8,186.71,39.86523792]
[1734682714193,2.15503212,186.81,186.75,39.86523792]
[1734682714498,39.86523792,186.84,186.77,39.86523792]
[1734682714705,13.04663317,186.83,186.75,39.86523792]
[1734682714875,39.86523792,186.82,186.73,39.86523792]
[1734682715069,1.00375926,186.81,186.73,39.86523792]
[1734682715276,39.86523792,186.8,186.73,39.86523792]
[1734682715477,39.86523792,186.78,186.71,39.86523792]
[1734682715789,1.00407104,186.77,186.71,39.86523792]
[1734682716316,39.86523792,186.72,186.65,39.86523792]
[1734682716478,39.86523792,186.7,186.61,39.86523792]
[1734682716674,60.86953749,186.74,186.65,39.86523792]
[1734682716891,60.86953749,186.74,186.67,39.86523792]
[1734682717097,3.70955312,186.73,186.67,39.86523792]
[1734682717289,4.71372915,186.73,186.67,39.86523792]
[1734682717492,1.00417603,186.73,186.65,39.86523792]
[1734682717691,39.86523792,186.7,186.63,39.86523792]
[1734682718014,40.86968907,186.74,186.67,39.86523792]
[1734682718405,39.86523792,186.74,186.67,39.86523792]
[1734682718778,1.00416737,186.73,186.67,39.86523792]
[1734682718978,1.00423154,186.75,186.67,39.86523792]
[1734682719285,39.86523792,186.74,186.65,39.86523792]
[1734682719502,39.86523792,186.7,186.62,39.86523792]
[1734682719723,40.86968033,186.7,186.62,39.86523792]
[1734682719905,39.86523792,186.72,186.64,39.86523792]
[1734682720228,1.00438539,186.75,186.66,39.86523792]
[1734682720229,3.70699528,186.71,186.66,39.86523792]
[1734682720581,39.86523792,186.74,186.66,39.86523792]
[1734682720894,51.91273792,186.76,186.68,39.86523792]
[1734682721103,1.00419023,186.75,186.68,39.86523792]
[1734682721286,4.71295012,186.75,186.68,39.86523792]
[1734682721486,4.71295012,186.75,186.59,23.776884]
[1734682721487,39.86523792,186.74,186.66,39.86523792]
[1734682721687,39.86523792,186.74,186.64,39.86523792]
[1734682721688,1.00436715,186.73,186.64,39.86523792]
[1734682721906,1.00436715,186.73,186.62,39.86523792]
[1734682721907,39.86523792,186.7,186.62,39.86523792]
[1734682722119,1.00446966,186.69,186.62,39.86523792]
[1734682722325,39.86523792,186.66,186.59,39.86523792]
[1734682722499,1.00478169,186.65,186.58,2.1229]
[1734682722820,39.86523792,186.68,186.59,39.86523792]
[1734682723015,39.86523792,186.7,186.61,39.86523792]
[1734682723217,39.86523792,186.72,186.63,39.86523792]
[1734682723382,39.86523792,186.7,186.63,39.86523792]
[1734682723819,39.86523792,186.72,186.63,39.86523792]
[1734682724119,40.869484,186.74,186.67,39.86523792]
[1734682724410,40.869484,186.74,186.65,39.86523792]
[1734682725203,39.86523792,186.72,186.63,39.86523792]
[1734682725422,39.86523792,186.68,186.59,39.86523792]
[1734682725588,39.86523792,186.64,186.55,39.86523792]
[1734682726289,39.86523792,186.64,186.57,39.86523792]
[1734682726604,1.00475299,186.63,186.55,39.86523792]
[1734682726795,39.86523792,186.6,186.53,39.86523792]
[1734682727002,1.00504561,186.59,186.53,39.86523792]
[1734682727210,39.86523792,186.58,186.51,39.86523792]
[1734682727389,39.86523792,186.56,186.49,39.86523792]
[1734682727587,1.00535988,186.55,186.47,39.86523792]
[1734682727789,39.86523792,186.54,186.45,39.86523792]
[1734682728111,1.00545118,186.53,186.45,39.86523792]
[1734682728295,39.86523792,186.5,186.43,39.86523792]
[1734682728492,1.00562375,186.49,186.41,39.92991338]
[1734682728708,39.86523792,186.48,186.41,0.06467546]
[1734682729020,1.00562375,186.49,186.41,0.06467546]
[1734682729021,39.86523792,186.46,186.41,0.06467546]
[1734682729188,1.00567444,186.45,186.41,0.06467546]
[1734682729593,39.86523792,186.42,186.41,0.06467546]
[1734682730310,39.86523792,186.42,186.41,7.546e-05]
[1734682730615,3.67622287,186.42,186.41,7.546e-05]
[1734682730904,3.67622287,186.42,186.41,39.86531338]
[1734682731096,1.00585505,186.47,186.41,39.86531338]
[1734682731496,39.86523792,186.5,186.43,39.86523792]
[1734682731497,1.00067594,186.49,186.43,39.86523792]
[1734682731810,39.86523792,186.52,186.43,39.86523792]
[1734682731996,1.00546418,186.51,186.45,39.86523792]
[1734682732192,39.86523792,186.58,186.49,39.86523792]
[1734682732399,1.00514449,186.57,186.51,39.86523792]
[1734682732598,39.86523792,186.6,186.51,39.86523792]
[1734682732825,1.00504274,186.59,186.53,39.86523792]
[1734682733117,1.00504274,186.59,186.51,39.86523792]
[1734682733327,1.00504274,186.59,186.53,39.86523792]
[1734682733689,39.86523792,186.62,186.53,39.86523792]
[1734682733885,1.00488556,186.61,186.53,39.86523792]
[1734682734090,39.86523792,186.62,186.55,39.86523792]
[1734682734987,39.86523792,186.6,186.53,39.86523792]
[1734682735220,1.00495286,186.59,186.53,39.86523792]
[1734682735402,1.00495286,186.59,186.51,39.86523792]